[Event "85th Southwest Open 2019"]
[Site "Dallas"]
[Date "2019.09.02"]
[Round "8.14"]
[White "Wang, Jason"]
[Black "Wheeler, Cameron"]
[Result "1-0"]
[ECO "E10"]
[WhiteElo "2300"]
[BlackElo "2397"]
[Annotator "NA"]
[PlyCount "69"]
[EventDate "2019.08.29"]
[EventType "swiss"]
[EventCountry "USA"]
[SourceTitle "playchess.com"]
[Source "ChessBase"]
[SourceQuality "1"]
[TimeControl "5400+30"]

1. d4 {[%emt 0:00:00]} Nf6 {[%emt 0:00:00]} 2. c4 {[%emt 0:00:00]} e6 {[%emt 0:00:00]} 3. Nf3 {[%emt 0:00:00]} c5 {[%emt 0:00:00]} 4. d5 {[%emt 0:00:00]} b5 {[%emt 0:00:00]} 5. Bg5 {[%emt 0:00:06]} exd5 {[%emt 0:00:38]} 6. cxd5 {[%emt 0:00:06]} d6 {[%emt 0:00:07]} 7. e4 {[%emt 0:00:14]} a6 {[%emt 0:00:05]} 8. Nbd2 {[%emt 0:00:09]} Be7 {[%emt 0:01:34]} 9. Bf4 {[%emt 0:00:08]} O-O {[%emt 0:03:56]} 10. a4 {[%emt 0:00:03]} Re8 {[%emt 0:01:03]} 11. Bd3 {[%emt 0:25:15]} c4 {[%emt 0:12:27]} 12. Bc2 {[%emt 0:03:01]} Bb7 {[%emt 0:06:32]} 13. Nd4 {[%emt 0:06:22]} b4 {[%emt 0:21:26]} 14. O-O {[%emt 0:10:27]} Bf8 {[%emt 0:01:08]} 15. Qf3 {[%emt 0:05:57]} Qc7 {[%emt 0:16:04]} 16. Rac1 {[%emt 0:02:34]} c3 {[%emt 0:03:20]} 17. Bb3 {[%emt 0:03:54]} Qb6 {[%emt 0:08:04]} 18. bxc3 {[%emt 0:00:32]} bxc3 {[%emt 0:00:05]} 19. Qxc3 {[%emt 0:00:08]} Nxe4 {[%emt 0:00:36]} 20. Nxe4 {[%emt 0:00:29]} Rxe4 {[%emt 0:00:06]} 21. Be3 {[%emt 0:00:19]} Nd7 {[%emt 0:02:09]} 22. Bc2 {[%emt 0:05:44]} Bxd5 {[%emt 0:00:53]} 23. Bxe4 {[%emt 0:01:28]} Bxe4 {[%emt 0:00:06]} 24. f3 {[%emt 0:01:33]} Bg6 {[%emt 0:01:08]} 25. Ne6 {[%emt 0:02:45]} Qb7 {[%emt 0:00:13]} 26. Nxf8 {[%emt 0:01:28]} Nxf8 {[%emt 0:00:12]} 27. Qc6 {[%emt 0:01:58]} Rb8 {[%emt 0:00:36]} 28. Qxb7 {[%emt 0:01:29]} Rxb7 {[%emt 0:00:07]} 29. Rc6 {[%emt 0:01:05]} Rb4 {[%emt 0:05:11]} 30. Rxd6 {[%emt 0:00:37]} h6 {[%emt 0:01:56]} 31. Rd8 {[%emt 0:00:25]} Rc4 {[%emt 0:00:52]} 32. Rc1 {[%emt 0:00:11]} Bc2 {[%emt 0:00:13]} 33. Rd2 {[%emt 0:00:43]} Bb3 {[%emt 0:00:06]} 34. Rxc4 {[%emt 0:00:07]} Bxc4 {[%emt 0:00:05]} 35. Rd8 {[%emt 0:00:03]} 1-0

[Event "85th Southwest Open 2019"]
[Site "Dallas"]
[Date "2019.09.02"]
[Round "8.15"]
[White "Yim, Sung Ho"]
[Black "Li, Ben"]
[Result "0-1"]
[ECO "D45"]
[WhiteElo "2258"]
[BlackElo "2407"]
[Annotator "NA"]
[PlyCount "96"]
[EventDate "2019.08.29"]
[EventType "swiss"]
[EventCountry "USA"]
[SourceTitle "playchess.com"]
[Source "ChessBase"]
[SourceQuality "1"]
[TimeControl "5400+30"]

1. d4 {[%emt 0:03:17]} d5 {[%emt 0:00:00]} 2. c4 {[%emt 0:00:23]} c6 {[%emt 0:00:00]} 3. Nf3 {[%emt 0:00:17]} Nf6 {[%emt 0:00:00]} 4. Nc3 {[%emt 0:00:34]} e6 {[%emt 0:00:00]} 5. e3 {[%emt 0:00:35]} Nbd7 {[%emt 0:00:08]} 6. Qc2 {[%emt 0:01:36]} b6 {[%emt 0:00:41]} 7. b3 {[%emt 0:02:52]} Bb7 {[%emt 0:00:12]} 8. Be2 {[%emt 0:00:12]} Rc8 {[%emt 0:00:16]} 9. Bb2 {[%emt 0:01:18]} c5 {[%emt 0:00:12]} 10. O-O {[%emt 0:06:17]} cxd4 {[%emt 0:00:14]} 11. Nxd4 {[%emt 0:00:29]} dxc4 {[%emt 0:00:13]} 12. Bxc4 {[%emt 0:00:23]} a6 {[%emt 0:00:17]} 13. a4 {[%emt 0:01:58]} Ne5 {[%emt 0:00:10]} 14. Bxe6 {[%emt 0:21:23]} fxe6 {[%emt 0:01:17]} 15. Nxe6 {[%emt 0:00:05]} Qd3 {[%emt 0:01:53]} 16. Qe2 {[%emt 0:05:09]} Qxe2 {[%emt 0:21:37]} 17. Nxe2 {[%emt 0:00:07]} Ned7 {[%emt 0:00:08]} 18. Rac1 {[%emt 0:04:54]} Kf7 {[%emt 0:05:22]} 19. Rxc8 {[%emt 0:02:31]} Bxc8 {[%emt 0:00:02]} 20. Nxf8 {[%emt 0:03:21]} Rxf8 {[%emt 0:00:30]} 21. Rc1 {[%emt 0:01:21]} a5 {[%emt 0:05:56]} 22. Ba3 {[%emt 0:02:28]} Rd8 {[%emt 0:01:24]} 23. Nd4 {[%emt 0:02:42]} Ba6 {[%emt 0:02:23]} 24. Rc7 {[%emt 0:09:30]} Rc8 {[%emt 0:02:22]} 25. Ra7 {[%emt 0:00:13]} Bd3 {[%emt 0:00:41]} 26. f3 {[%emt 0:00:27]} Kg6 {[%emt 0:12:31]} 27. e4 {[%emt 0:05:12]} h5 {[%emt 0:00:40]} 28. Kf2 {[%emt 0:01:40]} Bc2 {[%emt 0:01:09]} 29. Nf5 {[%emt 0:07:31]} Kh7 {[%emt 0:00:20]} 30. b4 {[%emt 0:07:47]} axb4 {[%emt 0:02:12]} 31. Bxb4 {[%emt 0:00:04]} Rc4 {[%emt 0:01:31]} 32. Be7 {[%emt 0:01:15]} Rxa4 {[%emt 0:00:39]} 33. Rc7 {[%emt 0:00:06]} Ra2 {[%emt 0:00:18]} 34. Ke3 {[%emt 0:00:21]} Nd5+ {[%emt 0:01:15]} 35. exd5 {[%emt 0:00:02]} Bxf5 {[%emt 0:00:06]} 36. Kf4 {[%emt 0:00:14]} Kg6 {[%emt 0:00:13]} 37. Rc6+ {[%emt 0:02:31]} Nf6 {[%emt 0:00:02]} 38. g3 {[%emt 0:03:31]} Rd2 {[%emt 0:01:24]} 39. Rxb6 {[%emt 0:02:14]} Rxd5 {[%emt 0:00:37]} 40. Rd6 {[%emt 0:00:41]} Ra5 {[%emt 0:00:30]} 41. h4 {[%emt 0:00:33]} Rb5 {[%emt 0:02:03]} 42. Ra6 {[%emt 0:00:34]} Bh3 {[%emt 0:00:23]} 43. Ba3 {[%emt 0:00:57]} Rf5+ {[%emt 0:00:18]} 44. Ke3 {[%emt 0:00:01]} Bg2 {[%emt 0:00:07]} 45. f4 {[%emt 0:00:22]} Rb5 {[%emt 0:00:11]} 46. Bc1 {[%emt 0:00:37]} Rb3+ {[%emt 0:00:13]} 47. Kf2 {[%emt 0:00:05]} Bb7 {[%emt 0:00:05]} 48. Ra3 {[%emt 0:00:07]} Rb1 {[%emt 0:00:15]} 0-1

[Event "85th Southwest Open 2019"]
[Site "Dallas"]
[Date "2019.09.02"]
[Round "8.16"]
[White "Tiglon, Bryce"]
[Black "Vivekananthan, Anish"]
[Result "1-0"]
[ECO "B90"]
[WhiteElo "2371"]
[BlackElo "2162"]
[Annotator "NA"]
[PlyCount "87"]
[EventDate "2019.08.29"]
[EventType "swiss"]
[EventCountry "USA"]
[SourceTitle "playchess.com"]
[Source "ChessBase"]
[SourceQuality "1"]
[TimeControl "5400+30"]

1. e4 {[%emt 0:10:54]} c5 {[%emt 0:00:00]} 2. Nf3 {[%emt 0:00:05]} d6 {[%emt 0:00:00]} 3. d4 {[%emt 0:00:06]} cxd4 {[%emt 0:00:00]} 4. Nxd4 {[%emt 0:00:05]} Nf6 {[%emt 0:00:00]} 5. Nc3 {[%emt 0:00:02]} a6 {[%emt 0:00:00]} 6. h4 {[%emt 0:00:03]} e5 {[%emt 0:06:05]} 7. Nb3 {[%emt 0:00:03]} Be6 {[%emt 0:00:11]} 8. f4 {[%emt 0:00:03]} exf4 {[%emt 1:27:44]} 9. Bxf4 {[%emt 0:00:19]} Nc6 {[%emt 0:00:00]} 10. Qd3 {[%emt 0:09:49]} Ne5 {[%emt 0:00:00]} 11. Qe3 {[%emt 0:00:21]} Be7 {[%emt 0:00:00]} 12. O-O-O {[%emt 0:01:01]} Qc7 {[%emt 0:00:00]} 13. Nd4 {[%emt 0:08:08]} O-O {[%emt 0:00:00]} 14. Be2 {[%emt 0:04:22]} Nfd7 {[%emt 0:00:00]} 15. Nf5 {[%emt 0:05:35]} Bxf5 {[%emt 0:00:00]} 16. Nd5 {[%emt 0:02:31]} Qd8 {[%emt 0:00:00]} 17. exf5 {[%emt 0:02:36]} Rc8 {[%emt 0:00:00]} 18. g4 {[%emt 0:08:10]} Re8 {[%emt 0:00:00]} 19. Kb1 {[%emt 0:08:09]} Bf8 {[%emt 0:00:00]} 20. Qd4 {[%emt 0:00:27]} Rc5 {[%emt 0:00:00]} 21. Qd2 {[%emt 0:07:31]} Nc6 {[%emt 0:00:00]} 22. Rh2 {[%emt 0:02:58]} Nf6 {[%emt 0:00:00]} 23. Nxf6+ {[%emt 0:07:00]} Qxf6 {[%emt 0:00:00]} 24. Bf1 {[%emt 0:03:24]} Re4 {[%emt 0:00:00]} 25. c3 {[%emt 0:01:14]} d5 {[%emt 0:00:00]} 26. Bd3 {[%emt 0:01:09]} Re8 {[%emt 0:00:00]} 27. g5 {[%emt 0:00:06]} Qd8 {[%emt 0:00:00]} 28. b4 {[%emt 0:00:30]} Qb6 {[%emt 0:00:00]} 29. Ka1 {[%emt 0:01:06]} Nxb4 {[%emt 0:01:39]} 30. cxb4 {[%emt 0:00:17]} Rc6 {[%emt 0:00:05]} 31. Qb2 {[%emt 0:00:42]} Bxb4 {[%emt 0:01:49]} 32. Rc2 {[%emt 0:02:57]} a5 {[%emt 0:05:58]} 33. Bd2 {[%emt 0:00:53]} Rxc2 {[%emt 0:02:21]} 34. Bxc2 {[%emt 0:00:19]} Qc5 {[%emt 0:00:27]} 35. Bxb4 {[%emt 0:00:25]} axb4 {[%emt 0:00:06]} 36. Bb3 {[%emt 0:00:07]} d4 {[%emt 0:00:51]} 37. g6 {[%emt 0:00:02]} Rd8 {[%emt 0:00:09]} 38. gxf7+ {[%emt 0:00:27]} Kf8 {[%emt 0:00:14]} 39. f6 {[%emt 0:00:28]} gxf6 {[%emt 0:01:09]} 40. Qg2 {[%emt 0:00:02]} d3 {[%emt 0:00:40]} 41. Kb1 {[%emt 0:01:59]} d2 {[%emt 0:00:28]} 42. Qg8+ {[%emt 0:00:10]} Ke7 {[%emt 0:00:03]} 43. f8=Q+ {[%emt 0:00:08]} Rxf8 {[%emt 0:00:08]} 44. Qe6+ {[%emt 0:00:04]} 1-0

[Event "85th Southwest Open 2019"]
[Site "Dallas"]
[Date "2019.09.02"]
[Round "8.21"]
[White "Yu, Jennifer"]
[Black "Coraretti, Benjamin"]
[Result "1-0"]
[ECO "A20"]
[WhiteElo "2263"]
[BlackElo "2070"]
[Annotator "NA"]
[PlyCount "85"]
[EventDate "2019.08.29"]
[EventType "swiss"]
[EventCountry "USA"]
[SourceTitle "playchess.com"]
[Source "ChessBase"]
[SourceQuality "1"]
[TimeControl "5400+30"]

1. c4 {[%emt 0:05:22]} Nf6 {[%emt 0:02:00]} 2. Nc3 {[%emt 0:00:07]} e5 {[%emt 0:04:29]} 3. g3 {[%emt 0:01:55]} h6 {[%emt 0:04:07]} 4. Bg2 {[%emt 0:01:17]} c6 {[%emt 0:00:15]} 5. Nf3 {[%emt 0:02:42]} e4 {[%emt 0:03:16]} 6. Nd4 {[%emt 0:00:40]} d5 {[%emt 0:00:13]} 7. cxd5 {[%emt 0:00:56]} cxd5 {[%emt 0:00:17]} 8. d3 {[%emt 0:01:54]} exd3 {[%emt 0:21:27]} 9. Qxd3 {[%emt 0:00:38]} Nc6 {[%emt 0:00:24]} 10. O-O {[%emt 0:01:45]} Be7 {[%emt 0:03:51]} 11. Rd1 {[%emt 0:09:38]} Nb4 {[%emt 0:09:53]} 12. Qd2 {[%emt 0:13:09]} O-O {[%emt 0:02:05]} 13. a3 {[%emt 0:09:52]} Nc6 {[%emt 0:01:22]} 14. Nc2 {[%emt 0:00:34]} Be6 {[%emt 0:11:02]} 15. Nxd5 {[%emt 0:02:39]} Nxd5 {[%emt 0:00:21]} 16. Bxd5 {[%emt 0:00:02]} Bxd5 {[%emt 0:00:17]} 17. Qxd5 {[%emt 0:00:06]} Qb6 {[%emt 0:05:02]} 18. Qa2 {[%emt 0:05:51]} Qb5 {[%emt 0:11:06]} 19. Re1 {[%emt 0:08:41]} Bf6 {[%emt 0:01:48]} 20. Rb1 {[%emt 0:02:13]} Rfe8 {[%emt 0:06:45]} 21. Ne3 {[%emt 0:06:42]} Rad8 {[%emt 0:02:14]} 22. Qc4 {[%emt 0:03:51]} Qa5 {[%emt 0:07:18]} 23. b4 {[%emt 0:00:23]} Qh5 {[%emt 0:00:13]} 24. Bb2 {[%emt 0:07:51]} Bd4 {[%emt 0:00:01]} 25. Bxd4 {[%emt 0:04:34]} Rxd4 {[%emt 0:00:03]} 26. Qc3 {[%emt 0:03:53]} Rde4 {[%emt 0:00:05]} 27. Rbd1 {[%emt 0:01:29]} Rxe3 {[%emt 0:03:03]} 28. fxe3 {[%emt 0:00:02]} Ne5 {[%emt 0:00:23]} 29. Qc5 {[%emt 0:04:09]} Qh3 {[%emt 0:00:38]} 30. Qb5 {[%emt 0:00:14]} Re6 {[%emt 0:00:31]} 31. Qxb7 {[%emt 0:01:18]} Ng4 {[%emt 0:00:26]} 32. Rd8+ {[%emt 0:00:16]} Kh7 {[%emt 0:00:03]} 33. Qg2 {[%emt 0:00:03]} Qh5 {[%emt 0:00:31]} 34. Rd5 {[%emt 0:01:14]} f5 {[%emt 0:00:55]} 35. Rc5 {[%emt 0:00:38]} Rxe3 {[%emt 0:00:33]} 36. Rf1 {[%emt 0:00:27]} Re4 {[%emt 0:00:32]} 37. h3 {[%emt 0:00:46]} Ne3 {[%emt 0:00:20]} 38. Qxe4 {[%emt 0:00:17]} Nxf1 {[%emt 0:00:39]} 39. Qxf5+ {[%emt 0:00:07]} Qxf5 {[%emt 0:00:07]} 40. Rxf5 {[%emt 0:00:04]} Nxg3 {[%emt 0:00:05]} 41. Re5 {[%emt 0:00:41]} Kg6 {[%emt 0:00:02]} 42. Kf2 {[%emt 0:00:08]} Nf5 {[%emt 0:00:20]} 43. Ra5 {[%emt 0:02:22]} 1-0

[Event "85th Southwest Open 2019"]
[Site "Dallas"]
[Date "2019.09.02"]
[Round "8.23"]
[White "Yanayt, Eugene"]
[Black "Gutla, Aryan"]
[Result "1-0"]
[ECO "E74"]
[WhiteElo "2240"]
[BlackElo "1631"]
[Annotator "NA"]
[PlyCount "51"]
[EventDate "2019.08.29"]
[EventType "swiss"]
[EventCountry "USA"]
[SourceTitle "playchess.com"]
[Source "ChessBase"]
[SourceQuality "1"]
[TimeControl "5400+30"]

1. d4 {[%emt 0:03:32]} Nf6 {[%emt 0:06:49]} 2. c4 {[%emt 0:00:09]} g6 {[%emt 0:00:04]} 3. Nc3 {[%emt 0:00:13]} Bg7 {[%emt 0:00:11]} 4. e4 {[%emt 0:00:06]} d6 {[%emt 0:00:02]} 5. Be2 {[%emt 0:00:43]} O-O {[%emt 0:00:20]} 6. Be3 {[%emt 0:01:43]} c5 {[%emt 0:02:55]} 7. dxc5 {[%emt 0:13:13]} Qa5 {[%emt 0:02:35]} 8. Bd2 {[%emt 0:33:26]} dxc5 {[%emt 0:04:55]} 9. e5 {[%emt 0:07:47]} Ne8 {[%emt 0:02:06]} 10. Nd5 {[%emt 0:01:52]} Qd8 {[%emt 0:00:41]} 11. Bc3 {[%emt 0:06:02]} Nc6 {[%emt 0:01:06]} 12. f4 {[%emt 0:03:55]} Nd4 {[%emt 0:11:57]} 13. Bxd4 {[%emt 0:01:53]} cxd4 {[%emt 0:00:41]} 14. Nf3 {[%emt 0:00:57]} Nc7 {[%emt 0:03:17]} 15. Qxd4 {[%emt 0:03:04]} Be6 {[%emt 0:04:48]} 16. Rd1 {[%emt 0:01:16]} Nxd5 {[%emt 0:02:57]} 17. cxd5 {[%emt 0:00:03]} Qa5+ {[%emt 0:01:02]} 18. b4 {[%emt 0:02:24]} Qxa2 {[%emt 0:01:25]} 19. dxe6 {[%emt 0:00:09]} Qxe6 {[%emt 0:00:11]} 20. O-O {[%emt 0:01:01]} a5 {[%emt 0:00:45]} 21. Ng5 {[%emt 0:01:53]} Qc8 {[%emt 0:01:12]} 22. Rc1 {[%emt 0:02:13]} Qd8 {[%emt 0:01:13]} 23. Qxd8 {[%emt 0:01:51]} Rfxd8 {[%emt 0:00:12]} 24. bxa5 {[%emt 0:00:41]} Rxa5 {[%emt 0:00:24]} 25. Rc7 {[%emt 0:00:28]} Bxe5 {[%emt 0:00:35]} 26. fxe5 {[%emt 0:00:50]} 1-0

[Event "85th Southwest Open 2019"]
[Site "Dallas"]
[Date "2019.09.02"]
[Round "8.24"]
[White "Chen, Ryo"]
[Black "Kumar, Naman"]
[Result "1-0"]
[ECO "C84"]
[WhiteElo "1957"]
[BlackElo "2158"]
[Annotator "NA"]
[PlyCount "89"]
[EventDate "2019.08.29"]
[EventType "swiss"]
[EventCountry "USA"]
[SourceTitle "playchess.com"]
[Source "ChessBase"]
[SourceQuality "1"]
[TimeControl "5400+30"]

1. e4 {[%emt 0:00:00]} e5 {[%emt 0:00:00]} 2. Nf3 {[%emt 0:00:00]} Nc6 {[%emt 0:00:00]} 3. Bb5 {[%emt 0:00:00]} a6 {[%emt 0:00:00]} 4. Ba4 {[%emt 0:00:04]} Nf6 {[%emt 0:00:00]} 5. d3 {[%emt 0:00:12]} b5 {[%emt 0:00:06]} 6. Bb3 {[%emt 0:00:06]} Be7 {[%emt 0:00:07]} 7. O-O {[%emt 0:00:13]} O-O {[%emt 0:00:37]} 8. Bd5 {[%emt 0:00:26]} Bd6 {[%emt 0:05:51]} 9. Bxc6 {[%emt 0:02:08]} dxc6 {[%emt 0:00:18]} 10. h3 {[%emt 0:02:45]} h6 {[%emt 0:02:12]} 11. b3 {[%emt 0:00:48]} Qe7 {[%emt 0:03:52]} 12. Bb2 {[%emt 0:03:03]} Kh7 {[%emt 1:22:57]} 13. Nh2 {[%emt 0:14:20]} g6 {[%emt 0:00:00]} 14. Qe2 {[%emt 1:12:55]} Nh5 {[%emt 0:00:00]} 15. a4 {[%emt 0:00:30]} Nf4 {[%emt 0:00:00]} 16. Qf3 {[%emt 0:00:00]} h5 {[%emt 0:00:00]} 17. Nc3 {[%emt 0:00:00]} Bd7 {[%emt 0:00:00]} 18. Ne2 {[%emt 0:00:00]} Ne6 {[%emt 0:00:00]} 19. Qe3 {[%emt 0:00:00]} Bc5 {[%emt 0:00:00]} 20. Qd2 {[%emt 0:00:00]} Ng5 {[%emt 0:00:00]} 21. Kh1 {[%emt 0:00:00]} f6 {[%emt 0:00:00]} 22. f4 {[%emt 0:00:00]} exf4 {[%emt 0:00:00]} 23. Nxf4 {[%emt 0:00:00]} Bd6 {[%emt 0:00:00]} 24. Nf3 {[%emt 0:00:00]} Be5 {[%emt 0:00:00]} 25. Nxe5 {[%emt 0:05:00]} fxe5 {[%emt 0:00:00]} 26. Ba3 {[%emt 0:00:00]} Qf6 {[%emt 0:00:00]} 27. Bxf8 {[%emt 0:00:00]} Rxf8 {[%emt 0:00:00]} 28. Nxh5 {[%emt 0:00:00]} Qxf1+ {[%emt 0:00:00]} 29. Rxf1 {[%emt 0:00:00]} Rxf1+ {[%emt 0:00:00]} 30. Kh2 {[%emt 0:00:00]} Ne6 {[%emt 0:00:00]} 31. Ng3 {[%emt 0:00:00]} Rf7 {[%emt 0:00:00]} 32. Ne2 {[%emt 0:00:00]} c5 {[%emt 0:00:00]} 33. axb5 {[%emt 0:00:00]} axb5 {[%emt 0:00:00]} 34. Kg1 {[%emt 0:00:00]} Kg7 {[%emt 0:00:00]} 35. Qc3 {[%emt 0:00:00]} Kf6 {[%emt 0:00:00]} 36. Kh2 {[%emt 0:00:00]} Rh7 {[%emt 0:00:00]} 37. Ng1 {[%emt 0:00:00]} c6 {[%emt 0:00:58]} 38. Nf3 {[%emt 0:00:00]} Nd4 {[%emt 0:03:55]} 39. Qxc5 {[%emt 0:07:00]} Nxf3+ {[%emt 0:00:17]} 40. gxf3 {[%emt 0:00:00]} Ke6 {[%emt 0:01:44]} 41. Kg3 {[%emt 0:00:00]} Rh8 {[%emt 0:00:40]} 42. Qa3 {[%emt 0:00:00]} g5 {[%emt 0:00:14]} 43. c3 {[%emt 0:00:00]} Kf7 {[%emt 0:00:49]} 44. Qd6 {[%emt 0:00:00]} Rxh3+ {[%emt 0:00:28]} 45. Kg2 {[%emt 0:03:00]} 1-0

[Event "85th Southwest Open 2019"]
[Site "Dallas"]
[Date "2019.09.02"]
[Round "8.25"]
[White "Green, Austen"]
[Black "Nair, Ajitesh"]
[Result "1-0"]
[ECO "C45"]
[WhiteElo "2132"]
[BlackElo "1457"]
[Annotator "NA"]
[PlyCount "97"]
[EventDate "2019.08.29"]
[EventType "swiss"]
[EventCountry "USA"]
[SourceTitle "playchess.com"]
[Source "ChessBase"]
[SourceQuality "1"]
[TimeControl "5400+30"]

1. e4 {[%emt 0:00:00]} e5 {[%emt 0:00:00]} 2. Nf3 {[%emt 0:00:00]} Nc6 {[%emt 0:00:00]} 3. d4 {[%emt 0:00:00]} exd4 {[%emt 0:00:00]} 4. Nxd4 {[%emt 0:00:00]} Bc5 {[%emt 0:00:01]} 5. Nxc6 {[%emt 0:00:00]} bxc6 {[%emt 0:01:27]} 6. Bd3 {[%emt 0:00:00]} Ne7 {[%emt 0:00:29]} 7. Qh5 {[%emt 0:03:23]} Bb6 {[%emt 0:04:05]} 8. Nd2 {[%emt 0:00:13]} O-O {[%emt 0:02:18]} 9. Nf3 {[%emt 0:02:29]} Ng6 {[%emt 0:09:11]} 10. e5 {[%emt 0:13:22]} d6 {[%emt 0:11:05]} 11. O-O {[%emt 0:02:10]} Qd7 {[%emt 0:02:46]} 12. Ng5 {[%emt 0:08:11]} h6 {[%emt 0:11:34]} 13. e6 {[%emt 0:00:13]} fxe6 {[%emt 0:02:58]} 14. Bxg6 {[%emt 0:00:13]} Ba6 {[%emt 0:00:41]} 15. Bd2 {[%emt 0:03:29]} Bxf1 {[%emt 0:01:11]} 16. Rxf1 {[%emt 0:00:05]} Rf6 {[%emt 0:05:17]} 17. Nf3 {[%emt 0:02:40]} e5 {[%emt 0:04:42]} 18. Bg5 {[%emt 0:12:11]} Rff8 {[%emt 0:10:14]} 19. Bh4 {[%emt 0:09:23]} Rf4 {[%emt 0:04:36]} 20. Bg3 {[%emt 0:00:46]} Rf6 {[%emt 0:01:51]} 21. Bh4 {[%emt 0:41:42]} Rf4 {[%emt 0:01:02]} 22. b3 {[%emt 0:00:00]} Qg4 {[%emt 0:03:24]} 23. Bf7+ {[%emt 0:00:00]} Kh8 {[%emt 0:01:44]} 24. Qxg4 {[%emt 0:00:00]} Rxg4 {[%emt 0:00:07]} 25. Be6 {[%emt 0:00:00]} Rf4 {[%emt 0:00:51]} 26. Bg3 {[%emt 0:00:00]} Rf6 {[%emt 0:00:32]} 27. Bd7 {[%emt 0:00:00]} c5 {[%emt 0:00:34]} 28. Bc6 {[%emt 0:00:00]} Rb8 {[%emt 0:00:38]} 29. Rd1 {[%emt 0:00:00]} Ba5 {[%emt 0:01:20]} 30. Nd2 {[%emt 0:00:00]} Bxd2 {[%emt 0:00:28]} 31. Rxd2 {[%emt 0:00:00]} Rb6 {[%emt 0:00:45]} 32. Be4 {[%emt 0:00:00]} Rb8 {[%emt 0:00:36]} 33. f3 {[%emt 0:00:00]} g5 {[%emt 0:01:13]} 34. h4 {[%emt 0:00:00]} Kg7 {[%emt 0:00:46]} 35. Kf2 {[%emt 0:00:00]} Rh8 {[%emt 0:00:42]} 36. Ke3 {[%emt 0:00:00]} Kf7 {[%emt 0:01:15]} 37. Rd1 {[%emt 0:00:00]} Kg7 {[%emt 0:00:45]} 38. Rh1 {[%emt 0:00:00]} Rf7 {[%emt 0:00:24]} 39. Kd3 {[%emt 0:00:00]} Rff8 {[%emt 0:00:32]} 40. Be1 {[%emt 0:00:00]} Rf7 {[%emt 0:01:20]} 41. Bd5 {[%emt 0:00:00]} Re7 {[%emt 0:00:14]} 42. Bd2 {[%emt 0:00:00]} gxh4 {[%emt 0:01:14]} 43. Rxh4 {[%emt 0:00:00]} Kg6 {[%emt 0:01:03]} 44. Ra4 {[%emt 0:00:00]} c6 {[%emt 0:00:10]} 45. Bxc6 {[%emt 0:00:00]} Rc8 {[%emt 0:00:11]} 46. Ra6 {[%emt 0:00:00]} Kg7 {[%emt 0:00:55]} 47. Bd5 {[%emt 0:00:00]} Rh8 {[%emt 0:00:48]} 48. Rxd6 {[%emt 0:00:00]} h5 {[%emt 0:00:09]} 49. Ke4 {[%emt 0:00:00]} 1-0

[Event "85th Southwest Open 2019"]
[Site "Dallas"]
[Date "2019.09.03"]
[Round "9.9"]
[White "Drozdowski, Kacper"]
[Black "Wang, Jason"]
[Result "0-1"]
[ECO "B21"]
[WhiteElo "2484"]
[BlackElo "2300"]
[Annotator "RC"]
[PlyCount "104"]
[EventDate "2019.08.29"]
[EventType "swiss"]
[EventCountry "USA"]
[SourceTitle "playchess.com"]
[Source "ChessBase"]
[SourceQuality "1"]
[TimeControl "5400+30"]

1. e4 {[%emt 0:00:00]} c5 {[%emt 0:00:00]} 2. d3 {[%emt 0:00:00]} e6 {[%emt 0:00:00]} 3. f4 {[%emt 0:00:00]} d5 {[%emt 0:00:53]} 4. Nf3 {[%emt 0:00:12]} Nc6 {[%emt 0:00:19]} 5. Be2 {[%emt 0:00:38]} Nge7 {[%emt 0:02:29]} 6. O-O {[%emt 0:00:10]} g6 {[%emt 0:00:47]} 7. Qe1 {[%emt 0:00:14]} Bg7 {[%emt 0:00:31]} 8. Nc3 {[%emt 0:00:32]} b6 {[%emt 0:04:47]} 9. Qh4 {[%emt 0:00:52]} Ba6 {[%emt 0:03:40]} 10. f5 {[%emt 0:02:38]} exf5 {[%emt 0:06:47]} 11. exd5 {[%emt 0:07:37]} Nxd5 {[%emt 0:03:51]} 12. Bg5 {[%emt 0:00:15]} Qd7 {[%emt 0:02:18]} 13. Nxd5 {[%emt 0:03:10]} Qxd5 {[%emt 0:00:37]} 14. c3 {[%emt 0:00:06]} O-O {[%emt 0:03:09]} 15. Bh6 {[%emt 0:00:25]} Rfe8 {[%emt 0:02:56]} 16. Rf2 {[%emt 0:00:28]} Bxd3 {[%emt 0:07:09]} 17. Rd1 {[%emt 0:09:28]} Qe4 {[%emt 0:03:05]} 18. Bf4 {[%emt 0:00:25]} Bxe2 {[%emt 0:11:39]} 19. Ng5 {[%emt 0:00:10]} Qe7 {[%emt 0:10:38]} 20. Qxh7+ {[%emt 0:00:56]} Kf8 {[%emt 0:01:07]} 21. Re1 {[%emt 0:02:52]} Rad8 {[%emt 0:11:47]} 22. Rfxe2 {[%emt 0:00:34]} Qxe2 {[%emt 0:00:19]} 23. Rxe2 {[%emt 0:00:30]} Rxe2 {[%emt 0:00:06]} 24. h3 {[%emt 0:01:52]} Rxb2 {[%emt 0:06:39]} 25. Qh4 {[%emt 0:03:23]} Rxa2 {[%emt 0:03:13]} 26. Nh7+ {[%emt 0:01:07]} Kg8 {[%emt 0:00:22]} 27. Nf6+ {[%emt 0:00:19]} Kf8 {[%emt 0:00:04]} 28. Nh7+ {[%emt 0:00:21]} Ke8 {[%emt 0:01:32]} 29. Nf6+ {[%emt 0:02:38]} Bxf6 {[%emt 0:02:31]} 30. Qxf6 {[%emt 0:00:01]} Ne7 {[%emt 0:00:20]} 31. Qe5 {[%emt 0:02:50]} Ra4 {[%emt 0:01:35]} 32. Bg5 {[%emt 0:01:07]} Re4 {[%emt 0:00:06]} 33. Qc7 {[%emt 0:00:03]} Re6 {[%emt 0:00:44]} 34. Qxa7 {[%emt 0:01:43]} f6 {[%emt 0:00:41]} 35. Bf4 {[%emt 0:00:04]} Kf7 {[%emt 0:00:40]} 36. h4 {[%emt 0:01:31]} Rd3 {[%emt 0:01:20]} 37. Bc7 {[%emt 0:01:17]} Rd7 {[%emt 0:01:13]} 38. Qb8 {[%emt 0:00:44]} Nd5 {[%emt 0:00:10]} 39. Qh8 {[%emt 0:01:00]} Rxc7 {[%emt 0:00:34]} 40. Qh7+ {[%emt 0:00:11]} Kf8 {[%emt 0:00:14]} 41. Qh8+ {[%emt 0:01:50]} Ke7 {[%emt 0:00:06]} 42. Qg7+ {[%emt 0:00:06]} Kd6 {[%emt 0:00:05]} 43. Qxg6 {[%emt 0:00:05]} Ne3 {[%emt 0:01:55]} 44. Kf2 {[%emt 0:01:10]} Ng4+ {[%emt 0:03:05]} 45. Kg3 {[%emt 0:00:01]} Re3+ {[%emt 0:00:16]} 46. Kf4 {[%emt 0:00:06]} Re4+ {[%emt 0:00:13]} 47. Kg3 {[%emt 0:00:06]} Re3+ {[%emt 0:01:21]} 48. Kf4 {[%emt 0:00:04]} Rce7 {[%emt 0:00:46]} 49. c4 {[%emt 0:00:24]} Re1 {[%emt 0:00:57]} 50. Kxf5 {[%emt 0:00:33]} Ne3+ {[%emt 0:00:59]} 51. Kf4 {[%emt 0:00:06]} Rf1+ {[%emt 0:00:07]} 52. Kg3 {[%emt 0:00:04]} Rg7 {[%emt 0:00:05]} 0-1